fUSD/lending_fUSD_20260118
["ID","MTS","AMOUNT","RATE_DAILY","PERIOD"]
[402631382,1768729864421,-758.09,0.00017808,2]
[402631383,1768729864431,-281.99897673,0.00017808,2]
[402631384,1768729864443,-887.23,0.00017808,2]
[402631385,1768729864453,-500.0,0.00017808,2]
[402631386,1768729864462,-500.0,0.00017808,2]
[402631387,1768729864472,-500.0,0.00017808,2]
[402631388,1768729864482,-500.0,0.00017808,2]
[402631389,1768729864492,-500.0,0.00017808,2]
[402631390,1768729864501,-500.0,0.00017808,2]
[402631391,1768729864513,-1034.92037349,0.00017808,2]
[402631392,1768729864523,-500.0,0.00017808,2]
[402631393,1768729864533,-687.44,0.00017808,2]
[402631394,1768729864542,-500.0,0.00017808,2]
[402631395,1768729864552,-500.0,0.00017808,2]
[402631396,1768729864561,-298.1182132,0.00017808,2]
[402631397,1768729864571,-706.57,0.00017808,2]
[402631398,1768729864580,-500.0,0.00017808,2]
[402631399,1768729864590,-227.95127497,0.00017808,2]
[402631400,1768729864600,-500.0,0.00017808,2]
[402631401,1768729864609,-500.0,0.00017808,2]
[402631402,1768729864618,-500.0,0.00017808,2]
[402631403,1768729864628,-500.0,0.00017808,2]
[402631404,1768729864637,-500.0,0.00017808,2]
[402631405,1768729864646,-500.0,0.00017808,2]
[402631406,1768729864656,-278.04344976,0.00017808,2]
[402631407,1768729864669,-500.0,0.00017808,2]
[402631408,1768729864679,-500.0,0.00017808,2]
[402631409,1768729864689,-625.64,0.00017808,2]
[402631410,1768729864699,-527.08,0.00017808,2]
[402631411,1768729864708,-595.44383607,0.00017808,2]
[402631412,1768729864718,-500.0,0.00017808,2]
[402631413,1768729864728,-500.0,0.00017808,2]
[402631414,1768729864737,-500.0,0.00017808,2]
[402631415,1768729864748,-500.0,0.00017808,2]
[402631416,1768729864758,-500.0,0.00017808,2]
[402631417,1768729864767,-500.0,0.00017808,2]
[402631418,1768729864777,-235.7150467,0.00017808,2]
[402631419,1768729864787,-500.0,0.00017808,2]
[402631420,1768729864797,-500.0,0.00017808,2]
[402631421,1768729864806,-810.84,0.00017808,2]
[402631422,1768729864816,-500.0,0.00017808,2]
[402631423,1768729864827,-500.0,0.00017808,2]
[402631424,1768729864839,-500.0,0.00017808,2]
[402631425,1768729864850,-597.47257685,0.00017808,2]
[402631426,1768729864860,-500.0,0.00017808,2]
[402631427,1768729864870,-500.0,0.00017808,2]
[402631428,1768729864880,-4843.65,0.00017808,2]
[402631429,1768729864890,-500.0,0.00017808,2]
[402631430,1768729864900,-500.0,0.00017808,2]
[402631431,1768729864910,-500.0,0.00017808,2]
[402631432,1768729864920,-500.0,0.00017808,2]
[402631433,1768729864930,-500.0,0.00017808,2]
[402631434,1768729864940,-500.0,0.00017808,2]
[402631435,1768729864950,-500.0,0.00017808,2]
[402631436,1768729864961,-500.0,0.00017808,2]
[402631437,1768729864971,-500.0,0.00017808,2]
[402631438,1768729864981,-536.34,0.00017808,2]
[402631439,1768729864991,-500.0,0.00017808,2]
[402631440,1768729865000,-500.0,0.00017808,2]
[402631441,1768729865010,-500.0,0.00017808,2]
[402631442,1768729865019,-500.0,0.00017808,2]
[402631443,1768729865030,-500.0,0.00017808,2]
[402631444,1768729865039,-586.42,0.00017808,2]
[402631445,1768729865049,-500.0,0.00017808,2]
[402631446,1768729865059,-500.0,0.00017808,2]
[402631447,1768729865068,-500.0,0.00017808,2]
[402631448,1768729865079,-500.0,0.00017808,2]
[402631449,1768729865088,-500.0,0.00017808,2]
[402631450,1768729865098,-500.0,0.00017808,2]
[402631451,1768729865108,-500.0,0.00017808,2]
[402631452,1768729865119,-419.21942532,0.00017808,2]
[402631453,1768729865129,-500.0,0.00017808,2]
[402631454,1768729865138,-500.0,0.00017808,2]
[402631455,1768729865148,-565.82,0.00017808,2]
[402631456,1768729865158,-500.0,0.00017808,2]
[402631457,1768729865167,-500.0,0.00017808,2]
[402631458,1768729865178,-500.0,0.00017808,2]
[402631459,1768729865188,-500.0,0.00017808,2]
[402631460,1768729865199,-501.5,0.00017808,2]
[402631461,1768729865209,-643.70332727,0.00017808,2]
[402631462,1768729865220,-500.0,0.00017808,2]
[402631463,1768729865230,-500.0,0.00017808,2]
[402631464,1768729865239,-500.0,0.00017808,2]
[402631465,1768729865249,-545.05418294,0.00017808,3]
[402631466,1768729865259,-500.0,0.00017808,2]
[402631467,1768729865268,-500.0,0.00017808,2]
[402631468,1768729865277,-500.0,0.00017808,2]
[402631469,1768729865287,-500.0,0.00017808,2]
[402631470,1768729865296,-500.0,0.00017808,2]
[402631471,1768729865306,-500.0,0.00017808,2]
[402631472,1768729865315,-550.86,0.00017808,2]
[402631473,1768729865325,-500.0,0.00017808,2]
[402631474,1768729865335,-500.0,0.00017808,2]
[402631475,1768729865344,-500.0,0.00017808,2]
[402631476,1768729865354,-500.0,0.00017808,2]
[402631477,1768729865363,-500.0,0.00017808,2]
[402631478,1768729865373,-500.0,0.00017808,2]
[402631479,1768729865383,-500.0,0.00017808,2]
[402631480,1768729865393,-500.0,0.00017808,2]
[402631481,1768729865403,-500.0,0.00017808,2]
[402631482,1768729865414,-500.0,0.00017808,2]
[402631483,1768729865424,-550.76,0.00017808,2]
[402631484,1768729865434,-503.88,0.00017808,2]
[402631485,1768729865447,-500.0,0.00017808,2]
[402631486,1768729865456,-500.0,0.00017808,2]
[402631487,1768729865468,-3514.9,0.00017808,2]
[402631488,1768729865478,-500.0,0.00017808,2]
[402631489,1768729865487,-500.0,0.00017808,2]
[402631490,1768729865496,-530.86,0.00017808,2]
[402631491,1768729865506,-500.0,0.00017808,2]
[402631492,1768729865515,-500.0,0.00017808,2]
[402631493,1768729865525,-638.71,0.00017808,2]
[402631494,1768729865535,-500.0,0.00017808,2]
[402631495,1768729865544,-500.0,0.00017808,2]
[402631496,1768729865554,-494.29987061,0.00017808,2]
[402631497,1768729865564,-500.0,0.00017808,2]
[402631498,1768729865574,-500.0,0.00017808,2]
[402631499,1768729865585,-500.0,0.00017808,2]
[402631500,1768729865599,-500.0,0.00017808,2]
[402631501,1768729865612,-500.0,0.00017808,2]
[402631502,1768729865622,-500.0,0.00017808,2]
[402631503,1768729865632,-500.0,0.00017808,2]
[402631504,1768729865641,-500.0,0.00017808,2]
[402631505,1768729865651,-500.0,0.00017808,2]
[402631506,1768729865661,-500.0,0.00017808,2]
[402631507,1768729865671,-566.36,0.00017808,2]
[402631508,1768729865681,-500.0,0.00017808,2]
[402631509,1768729865692,-500.0,0.00017808,2]
[402631510,1768729865702,-164.1242988,0.00017808,2]
[402631511,1768729865712,-500.0,0.00017808,2]
[402631512,1768729865723,-500.0,0.00017808,2]
[402631513,1768729865734,-500.0,0.00017808,2]
[402631514,1768729865744,-500.0,0.00017808,2]
[402631515,1768729865755,-628.99,0.00017808,2]
[402631516,1768729865764,-500.0,0.00017808,2]
[402631517,1768729865774,-500.0,0.00017808,2]
[402631518,1768729865784,-1641.8,0.00017808,2]
[402631519,1768729865794,-500.0,0.00017808,2]
[402631520,1768729865803,-500.0,0.00017808,2]
[402631521,1768729865813,-500.0,0.00017808,2]
[402631522,1768729865823,-500.0,0.00017808,2]
[402631523,1768729865832,-500.0,0.00017808,2]
[402631524,1768729865842,-500.0,0.00017808,2]
[402631525,1768729865851,-500.0,0.00017808,2]
[402631526,1768729865861,-500.0,0.00017808,2]
[402631527,1768729865871,-500.0,0.00017808,2]
[402631528,1768729865881,-500.0,0.00017808,2]
[402631529,1768729865891,-569.89,0.00017808,2]
[402631530,1768729865900,-500.0,0.00017808,2]
[402631531,1768729865910,-500.0,0.00017808,2]
[402631532,1768729865921,-500.0,0.00017808,2]
[402631533,1768729865940,-250.0,0.00017808,2]
[402631534,1768729865949,-1000.0,0.00017808,2]
[402631535,1768729865959,-150.0,0.00017811,2]
[402631536,1768729865969,-447.57,0.00017816,2]
[402631537,1768729865979,-200.0,0.00017855,2]
[402631538,1768729865988,-200.0,0.00017856,2]
[402631539,1768729865998,-200.0,0.00017856,2]
[402631540,1768729866008,-5800.0,0.00017858,2]
[402631541,1768729866022,-500.0,0.00017863,2]
[402631542,1768729866033,-500.0,0.00017863,2]
[402631543,1768729866043,-2500.0,0.00017864,2]
[402631544,1768729866055,-271.9,0.00017865,2]
[402631545,1768729866065,-5800.0,0.00017866,2]
[402631546,1768729866075,-5800.0,0.00017874,2]
[402631547,1768729866093,-5800.0,0.00017883,2]
[402631548,1768729866114,-5800.0,0.00017891,2]
[402631549,1768729866126,-154.7914661,0.000179,2]
[402631550,1768729866138,-5800.0,0.000179,2]
[402631551,1768729866149,-323.92938161,0.000179,2]
[402631552,1768729866159,-323.92938161,0.000179,2]
[402631553,1768729866169,-323.92938161,0.000179,2]
[402631554,1768729866179,-323.92938161,0.000179,2]
[402631555,1768729866191,-323.92938161,0.000179,2]
[402631556,1768729866200,-323.92938161,0.000179,2]
[402631557,1768729866210,-323.92938161,0.000179,2]
[402631558,1768729866220,-564.0,0.000179,6]
[402631559,1768729866232,-162.96710136,0.000179,2]
[402631560,1768729866242,-4746.30463362,0.000179,2]
[402631561,1768729866252,-211.61539095,0.000179,3]
[402631562,1768729866262,-3092.052693,0.000179,2]
[402631563,1768729866271,-829.5534708,0.000179,2]
[402631564,1768729866280,-1046.77874033,0.000179,2]
[402631565,1768729866290,-1344.39837342,0.000179,2]
[402631566,1768729866300,-1249.39886294,0.000179,2]
[402631567,1768729866309,-500.0,0.000179,2]
[402631568,1768729866319,-500.0,0.000179,2]
[402631569,1768729866328,-500.0,0.000179,2]
[402631570,1768729866338,-500.0,0.000179,2]
[402631571,1768729866347,-500.0,0.000179,2]
[402631572,1768729866357,-500.0,0.000179,2]
[402631573,1768729866367,-150.0,0.00017905,2]
[402631574,1768729866376,-500.0,0.00017918,2]
[402631575,1768729866385,-500.0,0.00017918,2]
[402631576,1768729866399,-536.0,0.00017922,2]
[402631577,1768729866408,-1743.0,0.00017948,2]
[402631578,1768729866418,-172.84,0.00017966,2]
[402631579,1768729866427,-661.50728786,0.0001797,2]
[402631580,1768729866532,-224.71091954,0.00017972,2]
[402631581,1768729866543,-500.0,0.00017972,2]
[402631582,1768729866553,-500.0,0.00017973,2]
[402631583,1768729866564,-150.0,0.00017973,2]
[402631584,1768729866574,-155.91836117,0.0001799,2]
[402631585,1768729866583,-155.91836117,0.0001799,2]
[402631586,1768729866592,-1000.0,0.00017999,2]
[402631587,1768729866601,-1000.0,0.00017999,2]
[402631588,1768729866611,-1000.0,0.00017999,2]
[402631589,1768729866620,-1000.0,0.00017999,2]
[402631590,1768729866629,-1000.0,0.00017999,2]
[402631591,1768729866638,-1000.0,0.00017999,2]
[402631592,1768729866647,-1000.0,0.00017999,2]
[402631593,1768729866656,-1000.0,0.00017999,2]
[402631594,1768729866666,-1000.0,0.00017999,2]
[402631595,1768729866676,-1000.0,0.00017999,2]
[402631596,1768729866684,-1007.37691914,0.00017999,2]
[402631597,1768729866694,-501.14632219,0.00017999,2]
[402631598,1768729866703,-501.32651158,0.00017999,2]
[402631599,1768729866712,-300.0,0.00017999,2]
[402631600,1768729866722,-666.0,0.00017999,2]
[402631601,1768729866732,-501.36673818,0.00017999,2]
[402631602,1768729866741,-501.8149228,0.00017999,2]
[402631603,1768729866752,-502.40375353,0.00017999,2]
[402631604,1768729866761,-502.06349229,0.00017999,2]
[402631605,1768729866771,-500.35695421,0.00017999,2]
[402631606,1768729866780,-499.99558861,0.00017999,2]
[402631607,1768729866789,-300.0,0.00017999,2]
[402631608,1768729866799,-300.0,0.00017999,2]
[402631609,1768729866808,-670.55457234,0.00017999,2]
[402631610,1768729866818,-150.0,0.00018,2]
[402631611,1768729866828,-150.0,0.00018,2]
[402631612,1768729866838,-236.45405301,0.00018,2]
[402631613,1768729866847,-265.5663701,0.00018,2]
[402631614,1768729866856,-150.0,0.00018,2]
[402631615,1768729866865,-150.0,0.00018,2]
[402631616,1768729866874,-150.0,0.00018,2]
[402631617,1768729866883,-150.0,0.00018,2]
[402631618,1768729866892,-150.0,0.00018,2]
[402631619,1768729866902,-1109934.00941643,0.00018,2]
[402631620,1768729867267,-412.8989822,0.00018,2]
[402631621,1768729867279,-332.9023218,0.00018,2]
[402631622,1768729867556,-183.805901,0.00018,2]
[402631623,1768729867571,-281.37632925,0.00018,2]
[402631624,1768729867843,-16374.90182027,0.00018,2]
[402631625,1768729868320,-300.23409272,0.0001732,2]
[402631677,1768730518691,600.0,0.00027397,120]
[402631719,1768730668108,209.0,9.989e-05,2]
[402631720,1768730668391,209.0,9.989e-05,2]
[402631721,1768730668837,209.0,9.989e-05,2]
[402631722,1768730669198,209.0,9.989e-05,2]
[402631727,1768730710248,152.48,7.406e-05,2]
[402631730,1768730739193,-166.66,0.00014756,2]
[402631731,1768730739219,-195.0,0.00014756,2]
[402631732,1768730739244,-138.34,0.00014756,2]
[402631738,1768730793083,-133.66,0.00014756,2]
[402631739,1768730793105,-22.80349452,0.00014811,2]
[402631740,1768730821713,597.106292,0.00027397,120]
[402631902,1768731032285,-129.67650548,0.00014811,2]
[402631903,1768731032296,-1000.0,0.00014922,2]
[402631904,1768731032308,-432.62668499,0.00015066,2]
[402631906,1768731032319,-166.66,0.00015066,2]
[402631907,1768731032330,-195.0,0.0001507,2]
[402631908,1768731032342,-7.47273016,0.00015297,2]
[402631910,1768731032361,-292.52726984,0.00015297,2]
[402631911,1768731032372,-242.76087016,0.00015297,2]
[402631912,1768731032385,-397.33497739,0.00015297,2]
[402631913,1768731032398,-507.33351298,0.00015297,2]
[402631914,1768731032420,-52.57063947,0.00015297,2]
[402631915,1768731032431,-400.42936053,0.00015298,2]
[402631916,1768731032449,-99.57063947,0.00015298,2]
[402631917,1768731032465,-504.50437476,0.00015298,2]
[402631918,1768731032476,-410.24428163,0.00015298,2]
[402631919,1768731032494,-89.75571837,0.00015298,2]
[402631920,1768731032505,-500.0,0.00015298,2]
[402631922,1768731032517,-500.0,0.00015298,2]
[402631923,1768731032529,-555.44177922,0.00015298,2]
[402631925,1768731032541,-500.0,0.00015298,2]
[402631926,1768731032551,-500.0,0.00015298,2]
[402631927,1768731032562,-221.06244546,0.00015298,2]
[402631929,1768731032575,-277.02221811,0.00015298,2]
[402631930,1768731032586,-510.45715337,0.00015298,2]
[402631931,1768731032598,-315.0,0.00015298,2]
[402631933,1768731032608,-15168.82705353,0.00015299,2]
[402631934,1768731032622,-3794.84900764,0.00015299,2]
[402631966,1768731038738,-9573.10872075,0.00015299,2]
[402631969,1768731038753,-904.82,0.00015299,2]
[402631971,1768731038769,-3619.89584989,0.00015299,2]
[402631975,1768731038796,-1277.0,0.00015299,2]
[402631977,1768731038812,-15972.94042967,0.00015299,2]
[402631979,1768731038833,-999.0,0.00015299,2]
[402631987,1768731038900,-169504.25225104,0.00015299,2]
[402632046,1768731040430,-25419.42459338,0.00015299,2]
[402632047,1768731040588,-138874.5047941,0.00015299,2]
[402632048,1768731040597,-166.66,0.00015377,2]
[402632049,1768731040607,-4277.76858574,0.00015473,2]
[402632050,1768731040617,-173.47366199,0.00015486,2]
[402632051,1768731040628,-761.27994477,0.00015489,2]
[402632052,1768731040640,-150.27799443,0.00015498,2]
[402632053,1768731040651,-478.762,0.00015498,2]
[402632054,1768731040661,-3822.71419437,0.00015573,2]
[402632055,1768731040670,-500.0,0.00015673,2]
[402632056,1768731040679,-500.0,0.00015673,2]
[402632057,1768731040688,-500.0,0.00015673,2]
[402632058,1768731040698,-166.66,0.00015688,2]
[402632059,1768731040707,-500.0,0.00015698,2]
[402632060,1768731040716,-151.0,0.00015738,2]
[402632061,1768731040725,-4277.76858565,0.00015743,2]
[402632062,1768731040735,-3822.71419433,0.00015832,2]
[402632063,1768731040745,-500.0,0.00015946,2]
[402632064,1768731040755,-322.6107,0.00015946,2]
[402632065,1768731040764,-174.61919141,0.00015946,2]
[402632066,1768731040774,-2000.0,0.00015946,2]
[402632067,1768731040783,-2000.0,0.00015946,2]
[402632068,1768731040795,-2000.0,0.00015946,2]
[402632069,1768731040805,-2000.0,0.00015946,2]
[402632070,1768731040815,-2000.0,0.00015946,2]
[402632071,1768731040825,-2000.0,0.00015946,2]
[402632072,1768731040834,-2000.0,0.00015946,2]
[402632073,1768731040846,-2000.0,0.00015946,2]
[402632074,1768731040855,-2000.0,0.00015946,2]
[402632076,1768731040866,-2000.0,0.00015946,2]
[402632078,1768731040875,-2000.0,0.00015946,2]
[402632080,1768731040885,-4001.0,0.00015946,2]
[402632082,1768731040894,-1000.0,0.00015946,2]
[402632084,1768731040904,-1000.0,0.00015946,2]
[402632086,1768731040913,-1998.0,0.00015946,2]
[402632088,1768731040922,-1000.0,0.00015946,2]
[402632090,1768731040931,-1000.0,0.00015946,2]
[402632092,1768731040941,-574.12855637,0.00015946,2]
[402632094,1768731040952,-1000.0,0.00015946,2]
[402632096,1768731040963,-1000.0,0.00015946,2]
[402632099,1768731040974,-1000.0,0.00015946,2]
[402632101,1768731040984,-1000.0,0.00015946,2]
[402632102,1768731040994,-767.68759009,0.00015946,2]
[402632104,1768731041003,-1000.0,0.00015946,2]
[402632107,1768731041013,-1000.0,0.00015946,2]
[402632109,1768731041023,-1000.0,0.00015946,2]
[402632111,1768731041032,-1000.0,0.00015946,2]
[402632112,1768731041043,-1000.0,0.00015946,2]
[402632114,1768731041053,-466.61007112,0.00015946,2]
[402632117,1768731041064,-1000.0,0.00015946,2]
[402632119,1768731041073,-1000.0,0.00015946,2]
[402632120,1768731041082,-199.2892777,0.00015946,2]
[402632122,1768731041091,-166.66,0.00015998,2]
[402632125,1768731041100,-4277.76858565,0.00016012,2]
[402632126,1768731041110,-3822.71419433,0.0001609,2]
[402632129,1768731041119,-150.0,0.000162,2]
[402632130,1768731041128,-150.0,0.000162,2]
[402632133,1768731041138,-150.0,0.000162,2]
[402632134,1768731041149,-150.0,0.000162,2]
[402632137,1768731041159,-150.0,0.000162,2]
[402632139,1768731041168,-150.0,0.000162,2]
[402632141,1768731041176,-150.0,0.000162,2]
[402632143,1768731041186,-150.0,0.000162,2]
[402632145,1768731041195,-150.0,0.000162,2]
[402632147,1768731041204,-150.0,0.000162,2]
[402632149,1768731041214,-150.0,0.000162,2]
[402632151,1768731041223,-150.0,0.000162,2]
[402632153,1768731041232,-1000.0,0.00016221,2]
[402632155,1768731041242,-1000.0,0.00016221,2]
[402632157,1768731041255,-501.84493033,0.00016221,2]
[402632159,1768731041264,-195.0,0.00016231,2]
[402632161,1768731041274,-205.36,0.00016254,2]
[402632162,1768731041284,-4277.76858565,0.00016282,2]
[402632163,1768731041294,-166.66,0.00016309,2]
[402632164,1768731041303,-150.0,0.00016338,2]
[402632165,1768731041313,-3822.71419433,0.00016349,2]
[402632166,1768731041323,-835.0,0.000164,2]
[402632167,1768731041333,-4106.77358996,0.00016426,2]
[402632168,1768731041342,-510.0,0.00016429,2]
[402632169,1768731041352,-501.32651158,0.00016438,2]
[402632170,1768731041361,-501.36673818,0.00016438,2]
[402632171,1768731041371,-501.8149228,0.00016438,2]
[402632172,1768731041380,-502.40375353,0.00016438,2]
[402632173,1768731041390,-502.06349229,0.00016438,2]
[402632174,1768731041399,-500.35695421,0.00016438,2]
[402632175,1768731041409,-499.99558861,0.00016438,2]
[402632176,1768731041419,-500.0,0.00016438,2]
[402632177,1768731041428,-500.0,0.00016438,2]
[402632178,1768731041438,-500.0,0.00016438,2]
[402632179,1768731041447,-500.0,0.00016438,2]
[402632180,1768731041457,-500.0,0.00016438,2]
[402632181,1768731041466,-500.0,0.00016438,2]
[402632183,1768731041476,-500.0,0.00016438,2]
[402632185,1768731041486,-500.0,0.00016438,2]
[402632187,1768731041495,-500.0,0.00016438,2]
[402632189,1768731041505,-500.0,0.00016438,2]
[402632191,1768731041514,-500.0,0.00016438,2]
[402632193,1768731041523,-500.0,0.00016438,2]
[402632195,1768731041533,-500.0,0.00016438,2]
[402632197,1768731041542,-500.0,0.00016438,2]
[402632199,1768731041551,-500.0,0.00016438,2]
[402632201,1768731041561,-334.27540544,0.00016438,2]
[402632203,1768731041570,-500.0,0.00016438,2]
[402632205,1768731041579,-510.2071425,0.00016438,2]
[402632207,1768731041588,-500.0,0.00016438,2]
[402632209,1768731041598,-500.0,0.00016438,2]
[402632211,1768731041607,-500.0,0.00016438,2]
[402632213,1768731041617,-378.10387805,0.00016438,2]
[402632215,1768731041626,-511.3,0.00016438,2]
[402632217,1768731041635,-431.99596911,0.00016438,2]
[402632219,1768731041645,-500.0,0.00016438,2]
[402632221,1768731041654,-1000.0,0.00016438,2]
[402632223,1768731041663,-500.0,0.00016438,2]
[402632225,1768731041672,-500.0,0.00016438,2]
[402632227,1768731041681,-500.0,0.00016438,2]
[402632229,1768731041690,-500.0,0.00016438,2]
[402632230,1768731041699,-726.5,0.00016438,2]
[402632232,1768731041708,-500.0,0.00016438,2]
[402632234,1768731041717,-524.17,0.00016438,2]
[402632236,1768731041726,-500.0,0.00016438,2]
[402632238,1768731041735,-500.0,0.00016438,2]
[402632240,1768731041744,-500.0,0.00016438,2]
[402632242,1768731041753,-500.0,0.00016438,2]
[402632243,1768731041763,-500.0,0.00016438,2]
[402632244,1768731041772,-500.0,0.00016438,2]
[402632245,1768731041781,-509.9800841,0.00016438,2]
[402632246,1768731041793,-500.0,0.00016438,2]
[402632247,1768731041803,-500.0,0.00016438,2]
[402632248,1768731041814,-505.12,0.00016438,2]
[402632249,1768731041825,-500.0,0.00016438,2]
[402632250,1768731041837,-500.0,0.00016438,2]
[402632251,1768731041846,-500.0,0.00016438,2]
[402632252,1768731041855,-500.0,0.00016438,2]
[402632253,1768731041867,-599.57,0.00016438,2]
[402632254,1768731041876,-500.0,0.00016438,2]
[402632255,1768731041885,-500.0,0.00016438,2]
[402632256,1768731041895,-500.0,0.00016438,2]
[402632257,1768731041904,-3120.56833898,0.00016438,2]
[402632258,1768731041914,-500.0,0.00016438,2]
[402632259,1768731041923,-500.0,0.00016438,2]
[402632260,1768731041932,-500.0,0.00016438,2]
[402632261,1768731041941,-500.0,0.00016438,2]
[402632262,1768731041950,-500.0,0.00016438,2]
[402632263,1768731041960,-500.0,0.00016438,2]
[402632264,1768731041969,-500.0,0.00016438,2]
[402632265,1768731041978,-500.0,0.00016438,2]
[402632266,1768731041989,-500.0,0.00016438,2]
[402632267,1768731041999,-500.0,0.00016438,2]
[402632268,1768731042010,-500.0,0.00016438,2]
[402632269,1768731042019,-500.0,0.00016438,2]
[402632270,1768731042029,-500.0,0.00016438,2]
[402632271,1768731042039,-500.0,0.00016438,2]
[402632272,1768731042049,-500.0,0.00016438,2]
[402632273,1768731042058,-511.64252877,0.00016438,2]
[402632274,1768731042068,-500.0,0.00016438,2]
[402632275,1768731042079,-500.0,0.00016438,2]
[402632276,1768731042089,-500.0,0.00016438,2]
[402632277,1768731042101,-500.0,0.00016438,2]
[402632278,1768731042111,-500.0,0.00016438,2]
[402632279,1768731042122,-500.0,0.00016438,2]
[402632280,1768731042131,-500.0,0.00016438,2]
[402632281,1768731042141,-500.0,0.00016438,2]
[402632282,1768731042150,-500.0,0.00016438,2]
[402632283,1768731042160,-500.0,0.00016438,2]
[402632284,1768731042169,-500.0,0.00016438,2]
[402632285,1768731042178,-532.16151842,0.00016438,2]
[402632286,1768731042188,-500.0,0.00016438,2]
[402632287,1768731042198,-500.0,0.00016438,2]
[402632288,1768731042207,-500.0,0.00016438,2]
[402632289,1768731042217,-500.0,0.00016438,2]
[402632290,1768731042227,-500.0,0.00016438,2]
[402632291,1768731042236,-500.0,0.00016438,2]
[402632292,1768731042246,-500.0,0.00016438,2]
[402632293,1768731042257,-500.0,0.00016438,2]
[402632294,1768731042266,-500.0,0.00016438,2]
[402632295,1768731042276,-500.0,0.00016438,2]
[402632296,1768731042286,-500.0,0.00016438,2]
[402632297,1768731042295,-500.0,0.00016438,2]
[402632298,1768731042304,-500.0,0.00016438,2]
[402632299,1768731042313,-500.0,0.00016438,2]
[402632300,1768731042322,-500.0,0.00016438,2]
[402632301,1768731042331,-500.0,0.00016438,2]
[402632302,1768731042340,-500.0,0.00016438,2]
[402632303,1768731042351,-500.0,0.00016438,2]
[402632304,1768731042360,-500.0,0.00016438,2]
[402632305,1768731042370,-500.0,0.00016438,2]
[402632306,1768731042378,-500.0,0.00016438,2]
[402632307,1768731042388,-500.0,0.00016438,2]
[402632308,1768731042397,-500.0,0.00016438,2]
[402632309,1768731042407,-500.0,0.00016438,2]
[402632310,1768731042417,-500.0,0.00016438,2]
[402632311,1768731042426,-523.58443193,0.00016438,2]
[402632312,1768731042435,-500.0,0.00016438,2]
[402632313,1768731042444,-500.0,0.00016438,2]
[402632314,1768731042455,-500.0,0.00016438,2]
[402632315,1768731042464,-500.0,0.00016438,2]
[402632316,1768731042474,-500.0,0.00016438,2]
[402632317,1768731042484,-500.0,0.00016438,2]
[402632318,1768731042493,-500.0,0.00016438,2]
[402632319,1768731042502,-500.0,0.00016438,2]
[402632320,1768731042511,-479.22179718,0.00016438,2]
[402632321,1768731042521,-500.0,0.00016438,2]
[402632322,1768731042531,-500.0,0.00016438,2]
[402632323,1768731042540,-500.0,0.00016438,2]
[402632324,1768731042764,-500.0,0.00016438,2]
[402632325,1768731042774,-500.0,0.00016438,2]
[402632326,1768731042783,-540.14,0.00016438,2]
[402632327,1768731042795,-500.0,0.00016438,2]
[402632328,1768731042805,-500.0,0.00016438,2]
[402632329,1768731042815,-300.0,0.00016438,2]